fUST/lending_fUST_20240817
["ID","MTS","AMOUNT","RATE_DAILY","PERIOD"]
[335098588,1723824676531,-500.0,0.00045205,120]
[335098589,1723824676541,-500.0,0.00045205,120]
[335098590,1723824676551,-563.5,0.00045205,120]
[335098591,1723824676560,-545.31,0.00045205,120]
[335098592,1723824676569,-500.0,0.00045205,120]
[335098593,1723824676578,-631.65,0.00045205,120]
[335098594,1723824676587,-500.0,0.00045205,120]
[335098595,1723824676606,-1145.47,0.00045205,120]
[335098596,1723824676615,-500.0,0.00045205,120]
[335098597,1723824676698,-901.73,0.00045205,120]
[335098598,1723824676709,-500.0,0.00045205,120]
[335098599,1723824676721,-10260.67,0.00045205,120]
[335098600,1723824676733,-500.0,0.00045205,120]
[335098601,1723824676744,-500.0,0.00045205,120]
[335098602,1723824676756,-500.0,0.00045205,120]
[335098603,1723824676767,-450.11662473,0.00045205,120]
[335098604,1723824676777,-764.92,0.00045205,120]
[335098605,1723824676786,-500.0,0.00045205,120]
[335098606,1723824676795,-2987.82,0.00045205,21]
[335098607,1723824676806,-716.98,0.00045205,120]
[335098608,1723824676817,-666.64,0.00045205,120]
[335098609,1723824676827,-1201.98,0.00045205,120]
[335098610,1723824676838,-637.84,0.00045205,120]
[335098611,1723824676850,-500.0,0.00045205,120]
[335098612,1723824676861,-2511.6,0.00045205,120]
[335098613,1723824676870,-500.0,0.00045205,120]
[335098614,1723824676880,-723.54,0.00045205,120]
[335098615,1723824676890,-576.16,0.00045205,120]
[335098616,1723824676900,-500.0,0.00045205,120]
[335098617,1723824676910,-500.0,0.00045205,120]
[335098618,1723824676919,-500.0,0.00045205,120]
[335098619,1723824676928,-1882.03,0.00045205,120]
[335098620,1723824676938,-1029.66,0.00045205,120]
[335098621,1723824676947,-1896.05,0.00045205,120]
[335098622,1723824676956,-815.8,0.00045205,120]
[335098623,1723824676966,-4568.8,0.00045205,120]
[335098624,1723824676976,-504.67548173,0.00045205,120]
[335098625,1723824676985,-516.63694109,0.00045205,120]
[335098626,1723824676995,-947.25,0.00045205,120]
[335098627,1723824677005,-975.37,0.00045205,120]
[335098628,1723824677014,-797.6,0.00045205,120]
[335098629,1723824677024,-500.0,0.00045205,120]
[335098630,1723824677033,-500.0,0.00045205,120]
[335098631,1723824677042,-1724.04,0.00045205,120]
[335098632,1723824677052,-1061.46,0.00045205,120]
[335098633,1723824677061,-500.0,0.00045205,120]
[335098634,1723824677070,-848.93,0.00045205,120]
[335098635,1723824677079,-1146.8,0.00045205,120]
[335098636,1723824677088,-500.0,0.00045205,120]
[335098637,1723824677100,-500.0,0.00045205,120]
[335098638,1723824677110,-500.0,0.00045205,120]
[335098639,1723824677119,-500.0,0.00045205,120]
[335098640,1723824677129,-500.0,0.00045205,120]
[335098641,1723824677138,-979.65,0.00045205,120]
[335098642,1723824677147,-500.0,0.00045205,120]
[335098643,1723824677157,-500.0,0.00045205,120]
[335098644,1723824677166,-508.82099429,0.00045205,120]
[335098645,1723824677175,-500.0,0.00045205,120]
[335098646,1723824677185,-894.36,0.00045205,120]
[335098647,1723824677194,-500.0,0.00045205,120]
[335098648,1723824677203,-500.0,0.00045205,120]
[335098649,1723824677212,-645.74,0.00045205,120]
[335098650,1723824677226,-641.42,0.00045205,120]
[335098651,1723824677235,-500.0,0.00045205,120]
[335098652,1723824677245,-1321.3,0.00045205,120]
[335098653,1723824677254,-500.0,0.00045205,120]
[335098654,1723824677263,-13031.02,0.00045205,120]
[335098655,1723824677272,-936.44,0.00045205,120]
[335098656,1723824677281,-673.1,0.00045205,120]
[335098657,1723824677291,-526.95,0.00045205,120]
[335098658,1723824677303,-561.51,0.00045205,120]
[335098659,1723824677312,-500.0,0.00045205,120]
[335098660,1723824677322,-617.673798,0.00045205,120]
[335098661,1723824677331,-500.0,0.00045205,120]
[335098662,1723824677341,-500.0,0.00045205,120]
[335098663,1723824677351,-500.0,0.00045205,120]
[335098664,1723824677362,-641.46,0.00045205,120]
[335098665,1723824677372,-2425.41,0.00045205,120]
[335098666,1723824677381,-1762.68,0.00045205,120]
[335098667,1723824677391,-500.0,0.00045205,120]
[335098668,1723824677400,-500.0,0.00045205,120]
[335098669,1723824677409,-500.0,0.00045205,120]
[335098670,1723824677419,-2314.36,0.00045205,120]
[335098671,1723824677428,-700.74,0.00045205,120]
[335098672,1723824677437,-666.41,0.00045205,120]
[335098673,1723824677446,-1019.62,0.00045205,120]
[335098674,1723824677455,-500.0,0.00045205,120]
[335098675,1723824677464,-664.99,0.00045205,120]
[335098676,1723824677474,-839.23,0.00045205,120]
[335098677,1723824677487,-4725.59,0.00045205,120]
[335098678,1723824677495,-567.41,0.00045205,120]
[335098679,1723824677505,-833.73,0.00045205,120]
[335098680,1723824677517,-1124.87,0.00045205,120]
[335098681,1723824677528,-616.41,0.00045205,120]
[335098682,1723824677538,-500.0,0.00045205,120]
[335098683,1723824677548,-628.45,0.00045205,120]
[335098684,1723824677557,-500.0,0.00045205,120]
[335098685,1723824677566,-519.03,0.00045205,120]
[335098686,1723824677575,-1015.36,0.00045205,120]
[335098687,1723824677585,-707.5,0.00045205,120]
[335098688,1723824677595,-500.0,0.00045205,120]
[335098689,1723824677604,-6729.3,0.00045205,120]
[335098690,1723824677614,-500.0,0.00045479,120]
[335098691,1723824677623,-500.0,0.00045479,120]
[335098692,1723824677633,-500.0,0.00045479,120]
[335098693,1723824677643,-500.0,0.00045479,120]
[335098694,1723824677651,-2456.91,0.00045479,120]
[335098695,1723824677661,-500.0,0.00045479,120]
[335098696,1723824677670,-293.14384816,0.00045479,120]
[335098697,1723824677679,-500.0,0.00045479,120]
[335098698,1723824677689,-500.0,0.00045479,120]
[335098699,1723824677698,-503.41,0.00045479,120]
[335098700,1723824677707,-500.0,0.00045479,120]
[335098701,1723824677717,-500.0,0.00045479,120]
[335098702,1723824677726,-500.0,0.00045479,120]
[335098703,1723824677735,-500.0,0.00045479,120]
[335098704,1723824677745,-311.20835475,0.00045479,120]
[335098705,1723824677755,-500.0,0.00045479,120]
[335098706,1723824677764,-258.09403125,0.00045479,120]
[335098707,1723824677774,-500.0,0.00045479,7]
[335098708,1723824677783,-590.69,0.00045479,120]
[335098709,1723824677792,-500.0,0.00045479,120]
[335098710,1723824677802,-500.0,0.00045479,120]
[335098711,1723824677811,-500.0,0.00045479,120]
[335098712,1723824677820,-500.0,0.00045479,120]
[335098713,1723824677830,-500.0,0.00045479,120]
[335098714,1723824677839,-645.31,0.00045479,120]
[335098715,1723824677851,-505.68875384,0.00045479,120]
[335098716,1723824677861,-504.88757038,0.00045479,120]
[335098717,1723824677870,-500.0,0.00045479,120]
[335098718,1723824677879,-500.0,0.00045479,120]
[335098719,1723824677889,-500.0,0.00045479,120]
[335098720,1723824677898,-699.13,0.00045479,120]
[335098721,1723824677908,-500.0,0.00045479,120]
[335098722,1723824677917,-500.0,0.00045479,120]
[335098723,1723824677926,-200.0,0.00045479,7]
[335098724,1723824677935,-644.7,0.00045479,120]
[335098725,1723824677945,-544.51,0.00045479,120]
[335098726,1723824677954,-693.59,0.00045479,120]
[335098727,1723824678036,-2148.57,0.00045479,120]
[335098728,1723824678046,-548.58,0.00045479,120]
[335098729,1723824678056,-500.0,0.00045479,120]
[335098730,1723824678065,-500.0,0.00045479,120]
[335098731,1723824678074,-1328.88,0.00045479,120]
[335098732,1723824678085,-500.0,0.00045479,120]
[335098733,1723824678095,-359.12136636,0.00045479,120]
[335098734,1723824678104,-500.0,0.00045479,120]
[335098735,1723824678113,-500.0,0.00045479,120]
[335098736,1723824678123,-500.0,0.00045479,120]
[335098737,1723824678132,-500.0,0.00045479,120]
[335098738,1723824678142,-635.25,0.00045479,120]
[335098739,1723824678151,-500.0,0.00045479,120]
[335098740,1723824678161,-500.0,0.00045479,120]
[335098741,1723824678170,-1192.76,0.00045479,7]
[335098742,1723824678179,-500.0,0.00045479,120]
[335098743,1723824678188,-500.0,0.00045479,120]
[335098744,1723824678197,-500.0,0.00045479,120]
[335098745,1723824678207,-1451.49,0.00045479,60]
[335098746,1723824678216,-500.0,0.00045479,120]
[335098747,1723824678230,-500.0,0.00045479,120]
[335098748,1723824678239,-500.0,0.00045479,120]
[335098749,1723824678248,-500.0,0.00045479,120]
[335098750,1723824678258,-500.0,0.00045479,120]
[335098751,1723824678269,-918.61,0.00045479,120]
[335098752,1723824678278,-500.0,0.00045479,120]
[335098753,1723824678288,-596.74,0.00045479,120]
[335098754,1723824678297,-500.0,0.00045479,120]
[335098755,1723824678309,-500.0,0.00045479,120]
[335098756,1723824678318,-500.0,0.00045479,120]
[335098757,1723824678328,-500.0,0.00045479,120]
[335098758,1723824678337,-500.0,0.00045479,120]
[335098759,1723824678348,-547.91,0.00045479,120]
[335098760,1723824678357,-500.0,0.00045479,120]
[335098761,1723824678366,-629.55,0.00045479,120]
[335098762,1723824678375,-643.97,0.00045479,120]
[335098763,1723824678385,-500.0,0.00045479,120]
[335098764,1723824678395,-500.0,0.00045479,120]
[335098765,1723824678404,-500.0,0.00045479,120]
[335098766,1723824678414,-500.0,0.00045479,120]
[335098767,1723824678423,-609.08,0.00045479,120]
[335098768,1723824678433,-1016.45,0.00045479,120]
[335098769,1723824678443,-788.01,0.00045479,120]
[335098770,1723824678452,-500.0,0.00045479,120]
[335098771,1723824678462,-500.0,0.00045479,120]
[335098772,1723824678471,-518.24,0.00045479,120]
[335098773,1723824678481,-500.0,0.00045479,2]
[335098774,1723824678490,-592.99521263,0.00045479,120]
[335098775,1723824678501,-894.34,0.00045479,120]
[335098776,1723824678511,-500.0,0.00045479,120]
[335098777,1723824678520,-284.20026009,0.00045479,120]
[335098778,1723824678531,-500.0,0.00045479,120]
[335098779,1723824678540,-643.91,0.00045479,120]
[335098780,1723824678550,-900.79,0.00045479,120]
[335098781,1723824678559,-502.30631461,0.00045479,120]
[335098782,1723824678568,-884.47,0.00045479,120]
[335098783,1723824678578,-500.0,0.00045479,120]
[335098784,1723824678588,-151.44061081,0.00045479,120]
[335098785,1723824678599,-636.00339967,0.00045479,120]
[335098786,1723824678609,-737.86,0.00045479,120]
[335098787,1723824678627,-1177.09,0.00045479,120]
[335098788,1723824678646,-500.0,0.00045479,120]
[335098789,1723824678665,-327.28195984,0.00045479,120]
[335098790,1723824678683,-746.07,0.00045479,120]
[335098791,1723824678702,-1036.78,0.00045479,120]
[335098792,1723824678718,-668.74,0.00045479,120]
[335098793,1723824678735,-603.85832217,0.00045479,120]
[335098794,1723824678749,-205.2946845,0.00045479,120]
[335098795,1723824678765,-673.85,0.00045479,120]
[335098796,1723824678783,-375.86083162,0.00045479,120]
[335098797,1723824678803,-163.79935975,0.00045479,120]
[335098798,1723824678816,-783.75,0.00045479,120]
[335098799,1723824678832,-902.95,0.00045479,120]
[335098800,1723824678848,-517.20732459,0.00045479,120]
[335098801,1723824678865,-500.0,0.00045479,120]
[335098802,1723824678880,-563.5,0.00045479,120]
[335098803,1723824678895,-545.31,0.00045479,120]
[335098804,1723824678909,-500.0,0.00045479,120]
[335098805,1723824678925,-631.65,0.00045479,120]
[335098806,1723824678939,-500.0,0.00045479,120]
[335098807,1723824678956,-1145.47,0.00045479,120]
[335098808,1723824678971,-281.52428394,0.00045479,120]
[335098809,1723824678986,-901.73,0.00045479,120]
[335098810,1723824679002,-500.0,0.00045479,120]
[335098811,1723824679017,-10260.67,0.00045479,120]
[335098812,1723824679031,-500.0,0.00045479,120]
[335098813,1723824679046,-500.0,0.00045479,120]
[335098814,1723824679060,-500.0,0.00045479,120]
[335098815,1723824679075,-764.92,0.00045479,120]
[335098816,1723824679090,-500.0,0.00045479,120]
[335098817,1723824679104,-2987.82,0.00045479,21]
[335098818,1723824679118,-716.98,0.00045479,120]
[335098819,1723824679132,-666.64,0.00045479,120]
[335098820,1723824679146,-1201.98,0.00045479,120]
[335098821,1723824679162,-637.84,0.00045479,120]
[335098822,1723824679177,-500.0,0.00045479,120]
[335098823,1723824679192,-2511.6,0.00045479,120]
[335098824,1723824679207,-500.0,0.00045479,120]
[335098825,1723824679224,-723.54,0.00045479,120]
[335098826,1723824679240,-576.16,0.00045479,120]
[335098827,1723824679255,-500.0,0.00045479,120]
[335098828,1723824679270,-504.65272397,0.00045479,120]
[335098829,1723824679285,-500.0,0.00045479,120]
[335098830,1723824679300,-1882.03,0.00045479,120]
[335098831,1723824679316,-1029.66,0.00045479,120]
[335098832,1723824679330,-1896.05,0.00045479,120]
[335098833,1723824679346,-815.8,0.00045479,120]
[335098834,1723824679360,-4568.8,0.00045479,120]
[335098835,1723824679375,-947.25,0.00045479,120]
[335098836,1723824679390,-975.37,0.00045479,120]
[335098837,1723824679405,-797.6,0.00045479,120]
[335098838,1723824679419,-500.0,0.00045479,120]
[335098839,1723824679434,-500.0,0.00045479,120]
[335098840,1723824679449,-1724.04,0.00045479,120]
[335098841,1723824679465,-1061.46,0.00045479,120]
[335098842,1723824679480,-500.0,0.00045479,120]
[335098843,1723824679494,-848.93,0.00045479,120]
[335098844,1723824679509,-1146.8,0.00045479,120]
[335098845,1723824679523,-500.0,0.00045479,120]
[335098846,1723824679538,-500.0,0.00045479,120]
[335098847,1723824679660,-500.0,0.00045479,120]
[335098848,1723824679670,-613.58369327,0.00045479,120]
[335098849,1723824679680,-505.15179497,0.00045479,120]
[335098850,1723824679690,-979.65,0.00045479,120]
[335098851,1723824679699,-500.0,0.00045479,120]
[335098852,1723824679709,-500.0,0.00045479,120]
[335098853,1723824679719,-500.0,0.00045479,120]
[335098854,1723824679729,-894.36,0.00045479,120]
[335098855,1723824679738,-500.0,0.00045479,120]
[335098856,1723824679748,-500.0,0.00045479,120]
[335098857,1723824679757,-645.74,0.00045479,120]
[335098858,1723824679767,-641.42,0.00045479,120]
[335098859,1723824679777,-500.0,0.00045479,120]
[335098860,1723824679786,-1321.3,0.00045479,120]
[335098861,1723824679797,-500.0,0.00045479,120]
[335098862,1723824679807,-13031.02,0.00045479,120]
[335098863,1723824679816,-936.44,0.00045479,120]
[335098864,1723824679826,-673.1,0.00045479,120]
[335098865,1723824679835,-526.95,0.00045479,120]
[335098866,1723824679850,-561.51,0.00045479,120]
[335098867,1723824679860,-500.0,0.00045479,120]
[335098868,1723824679869,-500.0,0.00045479,120]
[335098869,1723824679879,-500.0,0.00045479,120]
[335098870,1723824679889,-367.9387834,0.00045479,120]
[335098871,1723824679898,-641.46,0.00045479,120]
[335098872,1723824679908,-2425.41,0.00045479,120]
[335098873,1723824679917,-1762.68,0.00045479,120]
[335098874,1723824679927,-500.0,0.00045479,120]
[335098875,1723824679937,-507.32780119,0.00045479,120]
[335098876,1723824679946,-500.0,0.00045479,120]
[335098877,1723824679955,-2314.36,0.00045479,120]
[335098878,1723824679965,-700.74,0.00045479,120]
[335098879,1723824679974,-666.41,0.00045479,120]
[335098880,1723824679983,-1019.62,0.00045479,120]
[335098881,1723824679993,-500.0,0.00045479,120]
[335098882,1723824680002,-664.99,0.00045479,120]
[335098883,1723824680011,-839.23,0.00045479,120]
[335098884,1723824680020,-4725.59,0.00045479,120]
[335098885,1723824680030,-567.41,0.00045479,120]
[335098886,1723824680039,-833.73,0.00045479,120]
[335098887,1723824680049,-1124.87,0.00045479,120]
[335098888,1723824680058,-616.41,0.00045479,120]
[335098889,1723824680067,-500.0,0.00045479,120]
[335098890,1723824680077,-628.45,0.00045479,120]
[335098891,1723824680086,-500.0,0.00045479,120]
[335098892,1723824680099,-519.03,0.00045479,120]
[335098893,1723824680108,-1015.36,0.00045479,120]
[335098894,1723824680117,-707.5,0.00045479,120]
[335098895,1723824680127,-500.0,0.00045479,120]
[335098896,1723824680137,-6729.3,0.00045479,120]
[335098897,1723824680146,-3605.27,0.000455,30]
[335098898,1723824680156,-1208.12,0.000455,30]
[335098899,1723824680166,-11183.97938191,0.0004563,120]
[335098900,1723824680175,-500.0,0.00045753,120]
[335098901,1723824680184,-500.0,0.00045753,120]
[335098902,1723824680193,-512.46705453,0.00045753,120]
[335098903,1723824680202,-500.0,0.00045753,120]
[335098904,1723824680212,-2456.91,0.00045753,120]
[335098905,1723824680222,-500.0,0.00045753,120]
[335098906,1723824680235,-500.0,0.00045753,120]
[335098907,1723824680244,-500.0,0.00045753,120]
[335098908,1723824680253,-503.41,0.00045753,120]
[335098909,1723824680264,-500.0,0.00045753,120]
[335098910,1723824680274,-500.0,0.00045753,120]
[335098911,1723824680283,-500.0,0.00045753,120]
[335098912,1723824680293,-500.0,0.00045753,120]
[335098913,1723824680304,-500.0,0.00045753,120]
[335098914,1723824680313,-500.0,0.00045753,7]
[335098915,1723824680322,-590.69,0.00045753,120]
[335098916,1723824680332,-500.0,0.00045753,120]
[335098917,1723824680343,-401.13034275,0.00045753,120]
[335098918,1723824680352,-500.00604814,0.00045753,120]
[335098919,1723824680362,-500.0,0.00045753,120]
[335098920,1723824680371,-500.0,0.00045753,120]
[335098921,1723824680380,-645.31,0.00045753,120]
[335098922,1723824680390,-369.70659516,0.00045753,120]
[335098923,1723824680399,-500.0,0.00045753,120]
[335098924,1723824680408,-504.68299188,0.00045753,120]
[335098925,1723824680417,-699.13,0.00045753,120]
[335098926,1723824680426,-500.0,0.00045753,120]
[335098927,1723824680435,-500.0,0.00045753,120]
[335098928,1723824680445,-200.0,0.00045753,7]
[335098929,1723824680454,-644.7,0.00045753,120]
[335098930,1723824680463,-544.51,0.00045753,120]
[335098931,1723824680472,-693.59,0.00045753,120]
[335098932,1723824680481,-2148.57,0.00045753,120]
[335098933,1723824680490,-548.58,0.00045753,120]
[335098934,1723824680499,-500.0,0.00045753,120]
[335098935,1723824680508,-500.0,0.00045753,120]
[335098936,1723824680517,-1328.88,0.00045753,120]
[335098937,1723824680527,-500.0,0.00045753,120]
[335098938,1723824680537,-500.0,0.00045753,120]
[335098939,1723824680547,-500.0,0.00045753,120]
[335098940,1723824680557,-500.0,0.00045753,120]
[335098941,1723824680566,-500.0,0.00045753,120]
[335098942,1723824680575,-635.25,0.00045753,120]
[335098943,1723824680584,-500.0,0.00045753,120]
[335098944,1723824680594,-500.0,0.00045753,120]
[335098945,1723824680603,-1192.76,0.00045753,7]
[335098946,1723824680612,-500.0,0.00045753,120]
[335098947,1723824680622,-626.96597552,0.00045753,120]
[335098948,1723824680631,-500.0,0.00045753,120]
[335098949,1723824680640,-1451.49,0.00045753,60]
[335098950,1723824680649,-500.0,0.00045753,120]
[335098951,1723824680658,-500.0,0.00045753,120]
[335098952,1723824680667,-328.46611048,0.00045753,120]
[335098953,1723824680676,-500.0,0.00045753,120]
[335098954,1723824680685,-500.0,0.00045753,120]
[335098955,1723824680695,-918.61,0.00045753,120]
[335098956,1723824680704,-500.0,0.00045753,120]
[335098957,1723824680713,-596.74,0.00045753,120]
[335098958,1723824680723,-262.63971534,0.00045753,120]
[335098959,1723824680734,-500.0,0.00045753,120]
[335098960,1723824680743,-500.0,0.00045753,120]
[335098961,1723824680752,-500.0,0.00045753,120]
[335098962,1723824680761,-500.0,0.00045753,120]
[335098963,1723824680771,-547.91,0.00045753,120]
[335098964,1723824680780,-500.0,0.00045753,120]
[335098965,1723824680790,-629.55,0.00045753,120]
[335098966,1723824680799,-643.97,0.00045753,120]
[335098967,1723824680808,-500.0,0.00045753,120]
[335098968,1723824680818,-500.0,0.00045753,120]
[335098969,1723824680827,-500.0,0.00045753,120]
[335098970,1723824680837,-500.0,0.00045753,120]
[335098971,1723824680848,-609.08,0.00045753,120]
[335098972,1723824680863,-1016.45,0.00045753,120]
[335098973,1723824680872,-788.01,0.00045753,120]
[335098974,1723824680881,-500.0,0.00045753,120]
[335098975,1723824680983,-486.10294211,0.00045753,120]
[335098976,1723824680994,-518.24,0.00045753,120]
[335098977,1723824681004,-500.0,0.00045753,2]
[335098978,1723824681014,-894.34,0.00045753,120]
[335098979,1723824681024,-500.0,0.00045753,120]
[335098980,1723824681034,-500.0,0.00045753,120]
[335098981,1723824681045,-643.91,0.00045753,120]
[335098982,1723824681054,-900.79,0.00045753,120]
[335098983,1723824681064,-884.47,0.00045753,120]
[335098984,1723824681074,-500.0,0.00045753,120]
[335098985,1723824681084,-737.86,0.00045753,120]
[335098986,1723824681093,-1177.09,0.00045753,120]
[335098987,1723824681103,-500.0,0.00045753,120]
[335098988,1723824681113,-746.07,0.00045753,120]
[335098989,1723824681123,-1036.78,0.00045753,120]
[335098990,1723824681134,-668.74,0.00045753,120]
[335098991,1723824681144,-673.85,0.00045753,120]
[335098992,1723824681153,-783.75,0.00045753,120]
[335098993,1723824681163,-902.95,0.00045753,120]
[335098994,1723824681173,-500.0,0.00045753,120]
[335098995,1723824681182,-563.5,0.00045753,120]
[335098996,1723824681192,-545.31,0.00045753,120]
[335098997,1723824681202,-500.0,0.00045753,120]
[335098998,1723824681211,-631.65,0.00045753,120]
[335098999,1723824681224,-500.0,0.00045753,120]
[335099000,1723824681234,-1145.47,0.00045753,120]
[335099001,1723824681243,-901.73,0.00045753,120]
[335099002,1723824681253,-500.0,0.00045753,120]
[335099003,1723824681263,-10260.67,0.00045753,120]
[335099004,1723824681272,-500.0,0.00045753,120]
[335099005,1723824681282,-500.0,0.00045753,120]
[335099006,1723824681292,-524.07810304,0.00045753,120]
[335099007,1723824681303,-764.92,0.00045753,120]
[335099008,1723824681313,-500.0,0.00045753,120]
[335099009,1723824681322,-2987.82,0.00045753,21]
[335099010,1723824681332,-716.98,0.00045753,120]
[335099011,1723824681342,-666.64,0.00045753,120]
[335099012,1723824681355,-1201.98,0.00045753,120]
[335099013,1723824681366,-637.84,0.00045753,120]
[335099014,1723824681375,-500.0,0.00045753,120]
[335099015,1723824681385,-2511.6,0.00045753,120]
[335099016,1723824681395,-723.54,0.00045753,120]
[335099017,1723824681405,-576.16,0.00045753,120]
[335099018,1723824681416,-500.0,0.00045753,120]
[335099019,1723824681427,-500.0,0.00045753,120]
[335099020,1723824681437,-1882.03,0.00045753,120]
[335099021,1723824681447,-1029.66,0.00045753,120]
[335099022,1723824681459,-1896.05,0.00045753,120]
[335099023,1723824681469,-815.8,0.00045753,120]
[335099024,1723824681479,-4568.8,0.00045753,120]
[335099025,1723824681489,-947.25,0.00045753,120]
[335099026,1723824681499,-975.37,0.00045753,120]
[335099027,1723824681510,-797.6,0.00045753,120]
[335099028,1723824681521,-500.0,0.00045753,120]
[335099029,1723824681530,-500.0,0.00045753,120]
[335099030,1723824681539,-1724.04,0.00045753,120]
[335099031,1723824681549,-1061.46,0.00045753,120]
[335099032,1723824681559,-500.0,0.00045753,120]
[335099033,1723824681569,-848.93,0.00045753,120]
[335099034,1723824681580,-1146.8,0.00045753,120]
[335099035,1723824681590,-500.0,0.00045753,120]
[335099036,1723824681601,-500.0,0.00045753,120]
[335099037,1723824681611,-500.0,0.00045753,120]
[335099038,1723824681621,-979.65,0.00045753,120]
[335099039,1723824681630,-500.0,0.00045753,120]
[335099040,1723824681640,-500.0,0.00045753,120]
[335099041,1723824681650,-500.0,0.00045753,120]
[335099042,1723824681659,-894.36,0.00045753,120]
[335099043,1723824681669,-500.0,0.00045753,120]
[335099044,1723824681678,-500.0,0.00045753,120]
[335099045,1723824681688,-645.74,0.00045753,120]
[335099046,1723824681699,-641.42,0.00045753,120]
[335099047,1723824681710,-433.37166658,0.00045753,120]
[335099048,1723824681719,-1321.3,0.00045753,120]
[335099049,1723824681729,-500.0,0.00045753,120]
[335099050,1723824681739,-13031.02,0.00045753,120]
[335099051,1723824681748,-936.44,0.00045753,120]
[335099052,1723824681758,-673.1,0.00045753,120]
[335099053,1723824681767,-526.95,0.00045753,120]
[335099054,1723824681777,-561.51,0.00045753,120]
[335099055,1723824681787,-500.0,0.00045753,120]
[335099056,1723824681797,-500.0,0.00045753,120]
[335099057,1723824681806,-500.0,0.00045753,120]
[335099058,1723824681816,-641.46,0.00045753,120]
[335099059,1723824681826,-2425.41,0.00045753,120]
[335099060,1723824681836,-1762.68,0.00045753,120]
[335099061,1723824681852,-500.0,0.00045753,120]
[335099062,1723824681862,-500.0,0.00045753,120]
[335099063,1723824681871,-2314.36,0.00045753,120]
[335099064,1723824681881,-700.74,0.00045753,120]
[335099065,1723824681890,-666.41,0.00045753,120]
[335099066,1723824681900,-1019.62,0.00045753,120]
[335099067,1723824681909,-500.0,0.00045753,120]
[335099068,1723824681919,-664.99,0.00045753,120]
[335099069,1723824681928,-839.23,0.00045753,120]
[335099070,1723824681937,-4725.59,0.00045753,120]
[335099071,1723824681946,-567.41,0.00045753,120]
[335099072,1723824681955,-833.73,0.00045753,120]
[335099073,1723824681965,-1124.87,0.00045753,120]
[335099074,1723824681975,-616.41,0.00045753,120]
[335099075,1723824681984,-500.0,0.00045753,120]
[335099076,1723824681993,-628.45,0.00045753,120]
[335099077,1723824682003,-500.0,0.00045753,120]
[335099078,1723824682012,-519.03,0.00045753,120]
[335099079,1723824682022,-1015.36,0.00045753,120]
[335099080,1723824682031,-707.5,0.00045753,120]
[335099081,1723824682040,-233.36782043,0.00045753,120]
[335099082,1723824682050,-6729.3,0.00045753,120]
[335099083,1723824682059,-809.3947613,0.0004584,120]
[335099084,1723824682069,-1000.0,0.00046,90]
[335099085,1723824682080,-1280.01,0.00046,120]
[335099086,1723824682092,-10000.0,0.00046,30]
[335099087,1723824682104,-10000.0,0.00046,30]